bitfinex-derivatives/quotes_ETHF0:USTF0_20251216
["timestamp","ask_amount","ask_price","bid_price","bid_amount"]
[1765872341624,0.7377,2928.2,2928.1,5.5478]
[1765872341922,1.17867627,2928.5,2928.1,5.5478]
[1765872342123,0.7377,2928.2,2928.1,5.5478]
[1765872344129,0.7377,2928.2,2928.1,2.34]
[1765872346225,0.7377,2928.2,2928.1,5.5478]
[1765872347129,1.17867627,2928.5,2928.1,5.5478]
[1765872353441,1.93327627,2928.5,2928.1,5.5478]
[1765872355336,1.4923,2928.2,2928.1,5.5478]
[1765872355536,0.7377,2928.2,2928.1,5.5478]
[1765872355933,1.17867627,2928.5,2928.1,5.5478]
[1765872357138,0.44097627,2928.5,2928.1,5.5478]
[1765872357840,0.44097627,2928.5,2928.3,1.53948119]
[1765872358041,0.44097627,2928.5,2928.3,3.98948119]
[1765872358242,0.44097627,2928.5,2928.3,2.45]
[1765872360231,0.00417627,2928.5,2928.3,3.98948119]
[1765872360536,0.424,2929.0,2928.4,19.1488]
[1765872360742,0.424,2929.5,2928.9,1.53948119]
[1765872360942,0.424,2929.5,2929.4,1.53948119]
[1765872361139,0.424,2929.5,2929.4,4.25948119]
[1765872361438,0.424,2929.5,2929.4,2.72]
[1765872361641,0.42780047,2929.5,2929.4,5.93202572]
[1765872361838,0.00380047,2929.5,2929.4,5.93202572]
[1765872362439,1.88860047,2929.5,2929.4,5.93202572]
[1765872362639,0.47250047,2929.5,2929.4,5.93202572]
[1765872364437,1.88860047,2929.5,2929.4,3.21202572]
[1765872364643,1.88860047,2929.5,2929.4,0.00422572]
[1765872365647,1.88860047,2929.5,2929.4,2.56422572]
[1765872365948,0.00380047,2929.5,2929.4,2.56422572]
[1765872366248,0.47250047,2929.5,2929.4,2.56422572]
[1765872366646,0.00380047,2929.5,2929.4,2.56422572]
[1765872367039,0.424,2930.0,2929.4,18.50222572]
[1765872367243,1.8537,2930.5,2929.8,3.2078]
[1765872367443,1.8537,2930.5,2929.8,5.5778]
[1765872368349,1.85788662,2930.5,2929.8,5.5778]
[1765872368546,1.14788662,2930.5,2929.8,5.5778]
[1765872368751,0.44178662,2930.5,2929.8,5.5778]
[1765872369138,0.44178662,2930.5,2929.8,5.74847]
[1765872369346,0.00418662,2930.5,2930.4,3.2078]
[1765872369645,0.00418662,2930.5,2930.4,5.8178]
[1765872370143,0.4376,2931.0,2930.4,5.8178]
[1765872370349,0.4376,2931.0,2930.9,3.2078]
[1765872370543,0.4376,2931.0,2930.9,5.7278]
[1765872371048,0.44079137,2931.0,2930.9,5.7278]
[1765872371446,1.85689137,2931.0,2930.9,3.2078]
[1765872371752,1.4161,2930.6,2930.5,3.2078]
[1765872374950,1.4161,2930.6,2930.5,5.9778]
[1765872375351,4.35469137,2931.0,2930.5,5.9778]
[1765872376050,1.14689137,2931.0,2930.5,5.9778]
[1765872376244,1.85689137,2931.0,2930.8,3.2078]
[1765872376445,0.44079137,2931.0,2930.8,6.0378]
[1765872379153,0.00319137,2931.0,2930.8,6.0378]
[1765872379750,1.1748,2932.0,2931.0,0.1706]
[1765872380053,1.1748,2932.0,2931.4,3.2078]
[1765872380245,0.4687,2931.5,2931.4,5.4978]
[1765872380648,0.00365076,2931.5,2931.4,5.4978]
[1765872380847,0.4687,2932.0,2931.4,11.4978]
[1765872381043,1.1748,2932.5,2931.9,3.2078]
[1765872381245,0.4687,2932.5,2932.0,15.929]
[1765872381446,1.8848,2932.5,2932.4,3.2078]
[1765872381650,1.8848,2932.5,2932.1,3.2078]
[1765872381651,0.7061,2932.3,2932.1,3.2078]
[1765872381851,0.00261797,2932.3,2932.1,5.89123545]
[1765872382057,0.00261797,2932.3,2932.1,6.06177545]
[1765872382353,1.797e-05,2932.3,2932.2,2.78290979]
[1765872382559,1.797e-05,2932.3,2932.2,5.54290979]
[1765872382747,0.4687,2933.0,2932.5,0.17051]
[1765872382951,1.1748,2933.5,2932.9,3.2078]
[1765872383258,1.1748,2933.5,2933.4,3.2078]
[1765872383555,1.1748,2933.5,2933.4,6.0378]
[1765872383747,1.4161,2933.2,2933.1,3.2078]
[1765872383946,1.17807672,2933.5,2933.1,5.5178]
[1765872384149,1.4161,2933.2,2933.1,5.5178]
[1765872384654,1.4161,2933.2,2933.1,2.31]
[1765872386157,1.8848,2933.0,2932.9,0.00511745]
[1765872386751,1.8848,2933.0,2932.9,2.57511745]
[1765872387246,1.8848,2933.0,2932.9,0.00511745]
[1765872389361,1.8848,2932.5,2932.4,3.2078]
[1765872389859,1.4161,2932.2,2932.1,0.00343545]
[1765872390155,4.6239,2932.2,2932.1,0.00343545]
[1765872390462,1.4161,2931.7,2931.2,3.2078]
[1765872390660,1.4161,2931.7,2931.2,5.96291745]
[1765872391358,0.7061,2931.3,2931.2,7.44123977]
[1765872391559,0.70925679,2931.3,2931.2,7.44123977]
[1765872392054,1.41925679,2931.3,2931.2,4.23343977]
[1765872392358,0.00315679,2931.3,2931.2,4.23343977]
[1765872396454,0.78235679,2931.3,2931.2,4.23343977]
[1765872396651,2.55560608,2931.3,2931.2,2.75803977]
[1765872396852,1.5538,2930.7,2930.6,3.2078]
[1765872397056,1.5538,2930.4,2930.0,0.4595]
[1765872397257,0.7824,2930.1,2930.0,4.356]
[1765872397455,2.55615064,2930.4,2930.3,0.7342]
[1765872397660,1.5538,2930.4,2930.3,0.7342]
[1765872397861,1.5538,2930.4,2930.3,0.73762168]
[1765872398659,2.55633687,2930.4,2930.3,0.00342168]
[1765872401856,1.78493687,2930.4,2930.3,1.48992168]
[1765872402057,2.55633687,2930.4,2930.3,1.48992168]
[1765872402259,4.7616,2930.5,2930.4,0.7342]
[1765872402454,1.5538,2930.4,2930.3,0.73762168]
[1765872403465,1.5538,2930.4,2930.3,0.00342168]
[1765872404158,1.5538,2930.4,2930.3,0.73762168]
[1765872404865,1.5538,2930.4,2930.3,0.00342168]
[1765872405058,2.55516434,2930.4,2930.3,0.00342168]
[1765872405757,2.55516434,2930.4,2930.3,1.48992168]
[1765872406263,1.5538,2930.4,2930.3,0.00342168]
[1765872406964,1.5538,2930.4,2930.3,1.48992168]
[1765872407359,0.7824,2930.4,2930.3,3.93992168]
[1765872407562,3.2078,2930.5,2930.4,1.4865]
[1765872407863,3.2078,2930.5,2930.4,3.9765]
[1765872411867,0.00511745,2930.6,2930.5,1.4865]
[1765872412368,0.00511745,2930.6,2930.5,4.4002]
[1765872415872,1.55891745,2930.6,2930.5,1.4865]
[1765872416071,1.55891745,2930.6,2930.5,1.6065]
[1765872416272,1.55891745,2930.6,2930.5,1.4865]
[1765872416967,1.55891745,2930.6,2930.5,0.7342]
[1765872417173,1.55891745,2930.6,2930.5,1.4865]
[1765872417673,1.55891745,2930.6,2930.5,4.1765]
[1765872417873,1.55891745,2930.6,2930.5,1.4865]
[1765872418774,0.78751745,2930.6,2930.5,1.4865]
[1765872419173,0.00511745,2930.6,2930.5,1.9202]
[1765872419574,0.00511745,2930.6,2930.5,2.5402]
[1765872419774,0.00511745,2930.6,2930.5,4.3302]
[1765872420569,0.78751745,2930.6,2930.5,4.3302]
[1765872420775,0.7824,2930.5,2930.4,1.4865]
[1765872420971,0.00511745,2930.6,2930.5,1.9202]
[1765872421175,0.00511745,2930.6,2930.5,4.4302]
[1765872421375,3.2078,2931.1,2931.0,1.9202]
[1765872421587,3.9902,2931.1,2931.0,1.9202]
[1765872421774,4.7616,2931.1,2931.0,4.2265]
[1765872421977,4.7616,2931.1,2931.0,1.4865]
[1765872422274,1.4973,2930.4,2930.3,0.00342168]
[1765872422474,1.4973,2930.4,2930.3,1.50252168]
[1765872422669,4.71018714,2930.6,2930.5,1.4991]
[1765872422870,1.4973,2930.4,2930.3,1.50252168]
[1765872424176,1.4973,2930.4,2930.3,3.52502168]
[1765872424376,4.71018714,2930.6,2930.5,1.4991]
[1765872424586,3.21288714,2930.6,2930.5,4.3568]
[1765872424880,3.97028714,2930.6,2930.5,4.3568]
[1765872425473,4.71018714,2930.6,2930.5,4.3568]
[1765872425980,3.21288714,2930.6,2930.5,4.3568]
[1765872426482,4.71018714,2930.6,2930.5,4.3568]
[1765872427083,3.97028714,2930.6,2930.5,4.3568]
[1765872427579,3.21288714,2930.6,2930.5,4.3568]
[1765872428888,0.00508714,2930.6,2930.5,4.3568]
[1765872429182,3.9652,2930.9,2930.8,1.4991]
[1765872429377,3.9652,2930.9,2930.8,4.1291]
[1765872429683,4.7051,2930.9,2930.8,1.4991]
[1765872429882,4.7051,2930.9,2930.8,3.9391]
[1765872430081,3.2078,2930.9,2930.8,3.9391]
[1765872430277,3.21095679,2931.3,2931.2,1.4991]
[1765872430582,3.21095679,2931.3,2931.2,4.2591]
[1765872431077,1.4973,2931.1,2931.0,1.4991]
[1765872431484,1.4973,2931.1,2931.0,4.0891]
[1765872431685,1.9664,2931.0,2930.9,0.7816]
[1765872431885,1.9664,2931.0,2930.9,3.5516]
[1765872432081,1.9664,2931.0,2930.9,4.2691]
[1765872432282,1.9664,2931.0,2930.9,1.4991]
[1765872432482,1.9664,2931.0,2930.9,3.3516]
[1765872432682,1.9664,2931.0,2930.9,3.8491]
[1765872432883,3.21095679,2931.3,2930.9,1.5491]
[1765872433088,4.70825679,2931.3,2931.2,0.7816]
[1765872433288,4.70825679,2931.3,2930.6,3.2078]
[1765872433485,4.70825679,2931.3,2930.6,5.8078]
[1765872433680,0.7574,2930.7,2930.6,7.3069]
[1765872433882,1.4973,2930.7,2930.6,7.3069]
[1765872434181,0.7574,2930.7,2930.6,7.3069]
[1765872434988,1.4973,2930.7,2930.6,7.3069]
[1765872435885,1.4973,2930.7,2930.6,6.5894]
[1765872436086,1.4973,2930.7,2928.8,8.32527512]
[1765872436087,1.4973,2930.2,2930.1,3.21291745]
[1765872436286,1.4973,2930.2,2930.1,0.69511745]
[1765872437192,1.4973,2930.2,2930.1,0.69841836]
[1765872438092,1.4973,2930.2,2930.1,1.48001836]
[1765872439297,1.4973,2930.2,2930.1,2.19751836]
[1765872439497,1.4973,2930.2,2930.1,0.69841836]
[1765872439999,1.4973,2930.2,2930.1,0.00841836]
[1765872449701,1.4973,2930.2,2930.1,0.79001836]
[1765872449904,1.4973,2930.2,2930.1,1.50751836]
[1765872450797,1.4973,2930.2,2930.1,0.79001836]
[1765872451201,1.4973,2930.2,2930.1,1.50751836]
[1765872451705,4.7051,2930.4,2930.3,1.4991]
[1765872451906,4.7051,2930.4,2930.3,0.7816]
[1765872452604,1.5054,2930.2,2930.1,1.52291836]
[1765872453307,1.5054,2930.2,2930.1,0.00841836]
[1765872454599,1.5054,2930.2,2929.1,3.2078]
[1765872454799,1.5317,2929.2,2929.1,7.3159]
[1765872455003,0.4541,2929.5,2929.1,7.3159]
[1765872455004,1.5317,2929.5,2929.4,1.4681]
[1765872455205,4.7395,2929.8,2929.7,0.7352]
[1765872455406,3.9915,2929.8,2929.7,3.3181]
[1765872455606,4.74190465,2929.8,2929.7,3.32133218]
[1765872456107,4.74190465,2929.8,2929.7,1.85323218]
[1765872460605,4.74190465,2929.8,2929.7,3.218e-05]
[1765872460811,1.70239,2929.6,2929.5,1.745e-05]
[1765872461010,1.5317,2928.6,2928.5,5.18629019]
[1765872461213,1.5317,2928.6,2928.5,7.47629019]
[1765872461407,1.5317,2928.6,2928.5,6.28569019]
[1765872461602,1.5317,2928.6,2928.5,7.01859019]
[1765872461812,0.7837,2928.6,2928.5,7.02153968]
[1765872462010,1.9858,2929.0,2928.9,0.7352]
[1765872462210,1.9858,2929.0,2928.5,3.70423968]
[1765872462410,1.9858,2929.0,2928.5,6.03423968]
[1765872463908,3.9915,2928.9,2928.8,1.4681]
[1765872464109,4.7395,2928.9,2928.8,1.4681]
[1765872464814,1.5317,2928.6,2928.5,1.52373968]
[1765872465014,1.5317,2928.6,2928.5,4.33373968]
[1765872466409,4.7395,2928.9,2928.8,0.7352]
[1765872470112,4.7395,2928.9,2928.8,1.4681]
[1765872470314,4.7395,2928.9,2928.8,0.7352]
[1765872471114,1.5317,2928.6,2928.5,1.96453968]
[1765872471316,1.5317,2928.6,2928.5,4.62453968]
[1765872471511,0.7837,2928.6,2928.5,4.62453968]
[1765872471712,1.5317,2928.6,2928.5,2.71563968]
[1765872472417,1.5317,2928.6,2928.5,3.45083968]
[1765872472919,1.5317,2928.6,2928.5,4.18373968]
[1765872473316,0.7837,2928.6,2928.5,4.62453968]
[1765872473720,1.5317,2928.6,2928.5,4.62453968]
[1765872474021,1.5317,2928.6,2928.5,4.18373968]
[1765872475123,1.5317,2928.6,2928.5,3.45083968]
[1765872475423,1.5317,2928.6,2928.5,2.71563968]
[1765872475623,4.7395,2928.6,2928.5,2.71563968]
[1765872476619,4.7395,2928.6,2928.5,3.45083968]
[1765872476816,4.7395,2928.6,2928.5,4.18373968]
[1765872481626,4.7395,2928.6,2928.5,2.71563968]
[1765872482023,4.7395,2928.6,2928.5,2.66294949]
[1765872482324,4.7395,2928.6,2928.5,0.00294949]
[1765872483128,4.7395,2928.6,2928.3,0.00511745]
[1765872483129,1.444,2928.4,2928.3,1.745e-05]
[1765872483329,1.444,2928.4,2928.3,1.81001745]
[1765872483628,0.59986,2928.5,2927.6,3.2078]
[1765872483629,1.444,2927.7,2927.6,3.2078]
[1765872483828,1.444,2927.7,2927.6,5.8358]
[1765872484025,1.44772029,2927.7,2927.6,5.39923173]
[1765872484425,1.44772029,2927.7,2927.6,4.71923173]
[1765872485630,1.44772029,2927.7,2927.6,7.17923173]
[1765872487835,0.71442029,2927.7,2927.6,7.17923173]
[1765872488937,1.44772029,2927.7,2927.6,7.17923173]
[1765872490130,1.44772029,2927.7,2927.6,6.68823173]
[1765872490335,1.44772029,2927.7,2927.6,7.45923173]
[1765872490739,1.44772029,2927.7,2927.6,6.68823173]
[1765872490932,1.44772029,2927.7,2927.6,0.02343173]
[1765872491132,1.44772029,2927.7,2927.6,2.56343173]
[1765872491732,1.44772029,2927.7,2927.6,3.30043173]
[1765872492135,1.44772029,2927.7,2927.6,2.56343173]
[1765872492433,1.44772029,2927.7,2927.6,0.00343173]
[1765872494139,0.00372029,2927.7,2927.6,3.80143173]
[1765872496044,0.71442029,2927.7,2927.6,3.80143173]
[1765872497036,0.00372029,2927.7,2927.6,3.80143173]
[1765872497639,2.029e-05,2927.7,2927.6,3.80143173]
[1765872499844,0.00511745,2927.9,2927.8,1.508]
[1765872500142,0.00511745,2927.9,2927.8,3.958]
[1765872500845,0.00893233,2927.9,2927.8,3.958]
[1765872501840,3.6369,2928.5,2928.4,1.508]
[1765872502041,3.2078,2928.5,2928.4,1.508]
[1765872502437,3.2078,2928.5,2928.4,4.168]
[1765872502643,3.2078,2928.5,2928.4,1.508]
[1765872503039,3.21061294,2928.5,2928.4,1.508]
[1765872503239,3.21061294,2928.5,2928.4,4.038]
[1765872503435,3.92131294,2928.5,2928.4,4.038]
[1765872504343,3.92131294,2928.5,2928.4,1.508]
[1765872504743,4.65461294,2928.5,2928.4,1.508]
[1765872505038,3.92131294,2928.5,2928.4,1.508]
[1765872505235,3.92131294,2928.5,2928.4,3.858]
[1765872505434,3.21061294,2928.5,2928.4,3.858]
[1765872505840,0.00281294,2928.5,2928.4,3.858]
[1765872506043,0.00511745,2928.7,2928.6,1.508]
[1765872506235,0.00511745,2928.7,2928.6,7.2258]
[1765872506439,1.44911745,2928.7,2928.6,7.2258]
[1765872507139,0.71985452,2928.7,2928.6,7.2258]
[1765872507337,0.00915452,2928.7,2928.6,7.2258]
[1765872507737,0.00915452,2928.7,2928.6,4.7158]
[1765872508046,0.00915452,2928.7,2928.6,7.3458]
[1765872509744,3.2078,2929.4,2929.3,1.4471]
[1765872509940,3.2078,2929.7,2929.6,0.7407]
[1765872510242,3.2078,2929.7,2929.6,1.4508]
[1765872510646,3.9242,2929.7,2929.6,1.4508]
[1765872510846,0.00369283,2929.7,2929.6,1.4508]
[1765872511043,0.00369283,2929.7,2929.6,3.9808]
[1765872511446,1.80886755,2930.4,2929.6,2.53]
[1765872511743,1.4993,2930.2,2930.1,3.2078]
[1765872512551,1.50193668,2930.2,2930.1,3.21058495]
[1765872512853,0.78463668,2930.2,2930.1,3.21058495]
[1765872513052,0.00263668,2930.2,2930.1,5.81058495]
[1765872515355,2.0722,2931.0,2930.1,5.81058495]
[1765872515550,1.2298,2931.0,2930.6,3.2078]
[1765872515856,1.2298,2931.0,2930.6,5.9578]
[1765872516148,1.23398368,2931.0,2930.6,5.9578]
[1765872516550,0.43328368,2931.0,2930.6,5.9578]
[1765872516752,0.00418368,2931.0,2930.6,5.9578]
[1765872517053,1.29698368,2931.0,2930.6,5.9578]
[1765872517247,2.13938368,2931.0,2930.6,5.9578]
[1765872517648,1.6431,2930.7,2930.6,5.9578]
[1765872518656,1.6431,2930.4,2930.3,3.2078]
[1765872519552,1.6431,2930.4,2930.3,5.8278]
[1765872519852,0.8007,2930.4,2930.3,6.0378]
[1765872520056,1.2928,2930.5,2930.3,6.0378]
[1765872520259,0.4921,2930.5,2930.3,6.0378]
[1765872520456,1.6431,2930.4,2930.3,6.0378]
[1765872521046,1.6431,2930.4,2930.3,3.2078]
[1765872521251,1.2928,2930.5,2930.3,6.0278]
[1765872521447,0.4921,2930.5,2930.3,6.0278]
[1765872521655,1.2928,2930.5,2930.3,6.0278]
[1765872521857,2.1352,2930.5,2930.3,5.9278]
[1765872522353,0.49628368,2931.0,2930.3,5.9278]
[1765872522559,1.29698368,2931.0,2930.7,3.2078]
[1765872522760,1.29698368,2931.0,2930.7,5.7778]
[1765872523261,0.49628368,2931.0,2930.7,5.7778]
[1765872524157,0.00418368,2931.0,2930.7,5.7778]
[1765872524358,0.49628368,2931.0,2930.7,5.7778]
[1765872524758,0.49628368,2931.0,2930.8,40.8]
[1765872524952,0.49628368,2931.0,2930.8,43.58]
[1765872526151,0.49628368,2931.0,2930.8,2.78]
[1765872526152,1.6431,2930.9,2930.8,2.78]
[1765872526652,0.8007,2930.9,2930.8,2.78]
[1765872526862,1.29698368,2931.0,2930.8,2.78]
[1765872527558,1.6431,2930.9,2930.8,2.78]
[1765872528663,0.8007,2930.9,2930.8,2.78]
[1765872528856,1.29698368,2931.0,2930.8,2.78]
[1765872529359,0.49628368,2931.0,2930.8,2.78]
[1765872530360,0.00418368,2931.0,2930.8,2.78]
[1765872530865,0.4496,2932.0,2930.9,15.92]
[1765872531168,0.4496,2932.0,2931.4,3.2078]
[1765872531369,0.4496,2932.0,2931.4,5.9978]
[1765872531769,0.45223373,2931.5,2931.4,5.9978]
[1765872531970,1.25293373,2931.5,2931.4,5.5778]
[1765872532271,2.09533373,2931.5,2931.4,5.5778]
[1765872532473,0.45223373,2931.5,2931.4,5.5778]
[1765872532973,1.25293373,2931.5,2931.4,5.5778]
[1765872533268,0.45223373,2931.5,2931.4,5.5778]
[1765872533672,0.45223373,2931.5,2931.4,5.8078]
[1765872535472,0.00263373,2931.5,2931.4,5.8078]
[1765872536576,0.00263373,2931.5,2931.4,5.97838]
[1765872536777,1.02201338,2931.9,2931.4,5.97838]
[1765872536977,0.4496,2932.0,2931.8,3.2078]
[1765872537176,1.02200467,2931.9,2931.8,5.9278]
[1765872537870,1.02536738,2931.9,2931.8,5.9278]
[1765872539680,2.66846738,2931.9,2931.8,5.9278]
[1765872540181,1.02536738,2931.9,2931.8,5.9278]
[1765872540583,2.66846738,2931.9,2931.8,5.9278]
[1765872542883,4.50014815,2931.9,2931.8,5.9278]
[1765872543484,1.02536738,2931.9,2931.8,5.9278]
[1765872544285,2.92850151,2932.5,2931.8,5.9278]
[1765872544286,2.32378077,2932.5,2931.8,6.09835]
[1765872544474,0.4921,2932.5,2932.4,3.2078]
[1765872544675,0.4921,2932.5,2932.4,5.5078]
[1765872544878,1.2711,2932.5,2932.4,5.5078]
[1765872545283,0.49466668,2932.5,2932.4,5.51163748]
[1765872545484,1.27366668,2932.5,2932.4,5.51163748]
[1765872545684,0.49466668,2932.5,2932.4,5.51163748]
[1765872546884,1.27366668,2932.5,2932.4,5.51163748]
[1765872547176,0.49466668,2932.5,2932.4,5.51163748]
[1765872547785,1.27366668,2932.5,2932.4,5.51163748]
[1765872548085,0.49466668,2932.5,2932.4,5.51163748]
[1765872552288,1.83168077,2932.9,2932.4,5.51163748]
[1765872552490,0.4921,2933.0,2932.8,3.2078]
[1765872552784,1.5466,2932.9,2932.8,4.1578]
[1765872552989,1.5466,2932.9,2932.8,3.2078]
[1765872553184,3.38145293,2932.9,2932.8,3.2078]
[1765872553788,3.38145293,2932.9,2932.8,5.9378]
[1765872553985,0.00407694,2932.9,2932.8,5.9378]
[1765872554887,0.4921,2933.0,2932.8,5.9378]
[1765872555093,2.32287599,2933.5,2932.8,5.9378]
[1765872555286,0.4921,2933.5,2933.4,3.2078]
[1765872555487,0.4921,2933.5,2933.4,5.8678]
[1765872555893,1.27409676,2933.5,2933.4,5.8678]
[1765872556292,2.29152742,2933.5,2933.4,5.8678]
[1765872556994,1.51252742,2933.5,2933.4,5.8678]
[1765872557698,3.05912742,2933.5,2933.4,5.8678]
[1765872557899,2.29152742,2933.5,2933.4,5.8678]
[1765872558099,2.29152742,2933.5,2933.4,3.2078]
[1765872558296,3.05912742,2933.5,2933.4,5.6178]
[1765872559000,3.05912742,2933.5,2933.4,3.2078]
[1765872559897,3.05912742,2933.5,2933.4,5.6378]
[1765872560097,3.05912742,2933.5,2933.4,3.2078]
[1765872560297,1.5466,2933.2,2933.1,2.87974375]
[1765872560599,2.56403066,2933.2,2933.1,2.87974375]
[1765872562400,1.5466,2932.9,2932.8,0.7358]
[1765872562605,1.978,2932.5,2932.1,3.2078]
[1765872562800,2.99543066,2932.5,2932.4,2.67895493]
[1765872563006,1.01743066,2932.5,2932.4,4.14865493]
[1765872563206,2.56403066,2932.5,2932.4,4.31865493]
[1765872563407,2.99543066,2932.5,2932.4,4.31865493]
[1765872563895,2.99543066,2932.5,2932.4,3.82865493]
[1765872564096,6.20323066,2932.5,2932.4,0.00895493]
[1765872565407,1.5466,2931.9,2931.8,3.2078]
[1765872565608,2.56403066,2931.9,2931.8,5.9578]
[1765872566509,2.56403066,2931.9,2931.8,5.96132886]
[1765872566709,2.56403066,2931.9,2931.8,3.21132886]
[1765872568204,1.5466,2931.9,2931.8,3.21132886]
[1765872573108,0.779,2931.9,2931.8,7.26492886]
[1765872573414,0.00511745,2932.1,2932.0,2.315]
[1765872573613,0.00511745,2932.1,2932.0,5.035]
[1765872575912,0.91141745,2932.1,2932.0,4.2616]
[1765872576209,1.81871745,2932.1,2932.0,4.2616]
[1765872576419,1.8136,2931.9,2931.8,3.21132886]
[1765872576714,1.8136,2931.9,2931.8,0.00352886]
[1765872579522,1.8136,2931.9,2931.8,0.91732886]
[1765872579728,1.8136,2931.9,2931.8,0.00352886]
[1765872582630,1.8136,2931.9,2931.8,0.91732886]
[1765872583027,1.8136,2931.9,2931.8,0.00352886]
[1765872584828,2.3423,2931.0,2930.9,1.8416]
[1765872585033,3.7365,2931.5,2930.9,7.6194]
[1765872585930,3.74068728,2931.5,2930.9,7.6272184]
[1765872586432,5.55428728,2931.5,2931.4,1.8416]
[1765872586728,5.55428728,2931.5,2931.4,0.9138]
[1765872587031,5.55428728,2931.5,2931.4,1.8416]
[1765872587327,5.55428728,2931.5,2931.4,0.9138]
[1765872588826,5.55428728,2931.5,2931.0,0.4665]
[1765872589026,5.55428728,2931.5,2931.4,0.9138]
[1765872591230,3.21198728,2931.5,2931.4,4.1716]
[1765872591933,0.00418728,2931.5,2931.4,4.1716]
[1765872595939,5.02651745,2932.1,2932.0,1.8416]
[1765872596934,5.02915802,2932.1,2932.0,4.4616]
[1765872597133,0.00775802,2932.1,2932.0,4.9919]
[1765872597840,3.2078,2932.4,2932.3,1.8416]
[1765872598041,3.2078,2932.4,2932.3,4.6216]
[1765872598342,5.0214,2932.7,2932.6,1.8416]
[1765872598938,5.02421636,2932.7,2932.6,1.8416]
[1765872599943,5.02421636,2932.7,2932.6,0.9138]
[1765872600337,3.21061636,2932.7,2932.6,1.8416]
[1765872600538,3.21061636,2932.7,2932.6,2.0216]
[1765872600744,3.21061636,2932.7,2932.6,1.8416]
[1765872601043,5.02421636,2932.7,2932.6,1.8416]
[1765872601439,5.02421636,2932.7,2932.6,0.9138]
[1765872601644,2.3423,2932.5,2932.4,1.84671745]
[1765872601844,2.3423,2932.5,2932.4,4.17671745]
[1765872602241,3.21061636,2932.7,2932.4,4.17671745]
[1765872602242,5.02421636,2932.7,2932.6,1.8416]
[1765872602442,5.02421636,2932.7,2932.6,0.9138]
[1765872602642,5.02421636,2932.7,2932.6,1.7419]
[1765872603042,5.02421636,2932.7,2932.6,0.9138]
[1765872603745,2.1027,2932.5,2932.4,0.00511745]
[1765872604044,4.02051636,2932.7,2932.6,1.6843]
[1765872604246,0.81271636,2932.7,2932.6,1.6843]
[1765872604444,0.00281636,2932.7,2932.6,1.8943]
[1765872604649,0.81271636,2932.7,2932.6,1.6843]
[1765872604948,2.1027,2932.5,2932.4,0.86131745]
[1765872605145,2.1027,2932.5,2932.4,3.22131745]
[1765872605947,2.1027,2932.5,2932.4,4.04941745]
[1765872606142,4.02051636,2932.7,2932.6,1.6843]
[1765872606651,4.02051636,2932.7,2932.6,1.7343]
[1765872606850,4.82461636,2932.7,2932.6,1.6843]
[1765872607047,2.1027,2932.5,2932.4,1.68941745]
[1765872607348,2.1027,2932.5,2932.4,4.00941745]
[1765872607949,2.1027,2932.5,2932.4,2.32511745]
[1765872609146,2.1027,2932.5,2932.4,3.18131745]
[1765872609749,2.1027,2932.5,2932.4,4.00941745]
[1765872609948,3.21061636,2932.7,2932.6,1.6843]
[1765872609949,4.82461636,2932.7,2932.6,1.6843]
[1765872610146,4.82461636,2932.7,2932.6,0.8562]
[1765872612550,2.1027,2932.5,2932.4,0.00511745]
[1765872612750,2.1027,2932.5,2932.4,3.16131745]
[1765872613051,2.1027,2932.5,2932.4,3.98941745]
[1765872613953,2.1027,2932.5,2932.4,3.16131745]
[1765872616355,1.2986,2932.5,2932.4,3.98941745]
[1765872616856,2.1027,2932.5,2932.4,3.98941745]
[1765872617261,2.1027,2932.5,2932.4,3.16131745]
[1765872617460,2.1027,2932.5,2932.4,3.98941745]
[1765872617760,2.1027,2932.5,2932.4,3.16131745]
[1765872617950,2.1027,2932.5,2932.4,3.98941745]
[1765872618752,4.82461636,2932.7,2932.6,1.6843]
[1765872618955,4.02051636,2932.7,2932.6,1.6843]
[1765872619156,4.82461636,2932.7,2932.6,1.6843]
[1765872619553,4.82461636,2932.7,2932.6,0.8562]
[1765872620755,2.1027,2932.5,2932.4,1.68941745]
[1765872620957,2.1027,2932.5,2932.4,4.42941745]
[1765872621156,1.2986,2932.5,2932.4,4.42941745]
[1765872621458,3.21061636,2932.7,2932.6,1.6843]
[1765872622059,4.82461636,2932.7,2932.6,1.6843]
[1765872622352,2.1027,2932.5,2932.4,0.00511745]
[1765872622553,2.1027,2932.5,2932.4,2.40511745]
[1765872622953,1.2986,2932.5,2932.4,4.08941745]
[1765872623152,4.02051636,2932.7,2932.6,1.6843]
[1765872623455,5.03536889,2932.7,2932.6,1.6843]
[1765872623657,1.82756889,2932.7,2932.6,1.7243]
[1765872623954,0.00281636,2932.7,2932.6,4.0743]
[1765872624152,0.00281636,2932.7,2932.6,1.7343]
[1765872624348,1.01766889,2932.7,2932.6,1.6843]
[1765872624547,0.81271636,2932.7,2932.6,1.6843]
[1765872624754,2.63166889,2932.7,2932.6,0.8562]
[1765872624952,2.1027,2932.5,2932.4,1.68941745]
[1765872625154,2.1027,2932.5,2932.4,4.22941745]
[1765872625357,2.1027,2932.5,2932.4,2.54511745]
[1765872625658,3.12224426,2932.5,2932.4,2.54511745]
[1765872627855,3.12224426,2932.5,2932.4,3.40131745]
[1765872628260,3.12224426,2932.5,2932.4,4.22941745]
[1765872628455,3.12224426,2932.5,2932.4,3.40131745]
[1765872628659,3.12224426,2932.5,2932.4,2.54511745]
[1765872629255,3.12224426,2932.5,2932.4,3.40131745]
[1765872629459,3.12224426,2932.5,2932.4,2.54511745]
[1765872629961,3.12224426,2932.5,2932.4,3.40131745]
[1765872631062,3.12224426,2932.5,2932.4,2.54511745]
[1765872631261,3.12224426,2932.5,2932.4,3.40131745]
[1765872632762,3.12224426,2932.5,2932.4,2.54511745]
[1765872633063,3.29276426,2932.5,2932.4,2.22461988]
[1765872633265,1.5369,2931.9,2931.8,3.9372]
[1765872633463,1.78254426,2932.4,2932.3,1.464]
[1765872633763,1.01954426,2932.4,2932.3,1.464]
[1765872633960,2.55644426,2932.6,2932.5,1.464]
[1765872634153,1.5369,2932.4,2932.3,0.73451745]
[1765872634356,2.55644426,2932.4,2932.3,3.30911745]